[Event "Early-Titled-Tuesday-Blitz-February-06-2024"]
[Site "Chess.com"]
[Date "2024.02.06"]
[Round "4"]
[White "ljm509"]
[Black "BestestBP"]
[Result "1-0"]
[WhiteElo "1980"]
[BlackElo "2253"]
[TimeControl "180+1"]
[EndTime "8:39:26 PST"]
[Termination "ljm509 won by checkmate"]

1. e4 {[%clk 0:03:00.7]} 1... e5 {[%clk 0:02:58.7]} 2. Nf3 {[%clk 0:03:00.5]}
2... Nc6 {[%clk 0:02:57.9]} 3. Bc4 {[%clk 0:03:00.2]} 3... Nf6 {[%clk
0:02:54.1]} 4. d3 {[%clk 0:03:00.1]} 4... h6 {[%clk 0:02:51.8]} 5. O-O {[%clk
0:02:59.9]} 5... d6 {[%clk 0:02:48.2]} 6. a4 {[%clk 0:02:59.1]} 6... Be6 {[%clk
0:02:35.1]} 7. Nc3 {[%clk 0:02:48.9]} 7... g5 {[%clk 0:02:17.3]} 8. Be3 {[%clk
0:02:41.7]} 8... d5 {[%clk 0:01:59.4]} 9. exd5 {[%clk 0:02:39.5]} 9... Nxd5
{[%clk 0:01:58.2]} 10. Bb5 {[%clk 0:02:20.1]} 10... Bd6 {[%clk 0:01:00.6]} 11.
Re1 {[%clk 0:02:10.8]} 11... Qf6 {[%clk 0:00:37.2]} 12. Ne4 {[%clk 0:02:04.4]}
12... Qe7 {[%clk 0:00:32.3]} 13. c4 {[%clk 0:01:59]} 13... Nxe3 {[%clk
0:00:18.5]} 14. Rxe3 {[%clk 0:01:51.4]} 14... O-O-O {[%clk 0:00:14.6]} 15. Bxc6
{[%clk 0:01:50.9]} 15... bxc6 {[%clk 0:00:14.7]} 16. a5 {[%clk 0:01:43.7]} 16...
f5 {[%clk 0:00:12.9]} 17. Nc3 {[%clk 0:01:43.5]} 17... Bc5 {[%clk 0:00:11.8]}
18. Rxe5 {[%clk 0:01:41.3]} 18... Qd6 {[%clk 0:00:11.8]} 19. Qe2 {[%clk
0:01:37.1]} 19... Rhe8 {[%clk 0:00:11.8]} 20. Re1 {[%clk 0:01:34.6]} 20... Bf7
{[%clk 0:00:12]} 21. Na4 {[%clk 0:01:28.6]} 21... Bd4 {[%clk 0:00:10.3]} 22.
Nxd4 {[%clk 0:01:27]} 22... Qxd4 {[%clk 0:00:10.8]} 23. Nc5 {[%clk 0:01:24]}
23... Rxe5 {[%clk 0:00:06.4]} 24. Qxe5 {[%clk 0:01:23.7]} 24... Qxe5 {[%clk
0:00:06]} 25. Rxe5 {[%clk 0:01:23.6]} 25... Re8 {[%clk 0:00:04.3]} 26. Rxe8+
{[%clk 0:01:19.6]} 26... Bxe8 {[%clk 0:00:05.2]} 27. Kf1 {[%clk 0:01:19.2]}
27... Kd8 {[%clk 0:00:05]} 28. b4 {[%clk 0:01:18.3]} 28... Ke7 {[%clk
0:00:05.2]} 29. Ke2 {[%clk 0:01:18.1]} 29... Kd6 {[%clk 0:00:04.6]} 30. Ke3
{[%clk 0:01:18.2]} 30... Bg6 {[%clk 0:00:04]} 31. f4 {[%clk 0:01:17.7]} 31...
Bf7 {[%clk 0:00:03.2]} 32. g3 {[%clk 0:01:15.5]} 32... Bg8 {[%clk 0:00:02.8]}
33. Nb7+ {[%clk 0:01:13.6]} 33... Kd7 {[%clk 0:00:02.7]} 34. Kd4 {[%clk
0:01:11.3]} 34... g4 {[%clk 0:00:01.8]} 35. Ke5 {[%clk 0:01:11]} 35... h5 {[%clk
0:00:02.3]} 36. Kf6 {[%clk 0:01:10.9]} 36... c5 {[%clk 0:00:02.9]} 37. Nxc5+
{[%clk 0:01:10.4]} 37... Kc6 {[%clk 0:00:03.5]} 38. Kxf5 {[%clk 0:01:10.8]}
38... a6 {[%clk 0:00:01.6]} 39. Nxa6 {[%clk 0:01:10]} 39... Kb7 {[%clk 0:00:02]}
40. Nc5+ {[%clk 0:01:09.9]} 40... Kc6 {[%clk 0:00:02.9]} 41. a6 {[%clk
0:01:09.9]} 41... Kb6 {[%clk 0:00:02.8]} 42. Kg6 {[%clk 0:01:05.1]} 42... c6
{[%clk 0:00:01.5]} 43. f5 {[%clk 0:01:04.8]} 43... h4 {[%clk 0:00:01.2]} 44.
gxh4 {[%clk 0:01:04.2]} 44... g3 {[%clk 0:00:02.1]} 45. hxg3 {[%clk 0:01:03.7]}
45... Ka7 {[%clk 0:00:02.4]} 46. f6 {[%clk 0:01:03.1]} 46... Kb6 {[%clk
0:00:03]} 47. f7 {[%clk 0:01:03.1]} 47... Bxf7+ {[%clk 0:00:03.9]} 48. Kxf7
{[%clk 0:01:03.4]} 48... Ka7 {[%clk 0:00:04.4]} 49. h5 {[%clk 0:01:03.4]} 49...
Kb6 {[%clk 0:00:05.2]} 50. h6 {[%clk 0:01:02.9]} 50... Ka7 {[%clk 0:00:06.1]}
51. h7 {[%clk 0:01:03.4]} 51... Kb6 {[%clk 0:00:06.4]} 52. h8=Q {[%clk
0:01:02.2]} 52... Ka7 {[%clk 0:00:07.3]} 53. Qd4 {[%clk 0:00:59.6]} 53... Kb8
{[%clk 0:00:06.8]} 54. Qd8+ {[%clk 0:00:59.2]} 54... Ka7 {[%clk 0:00:06.9]} 55.
Qc7+ {[%clk 0:00:59.1]} 55... Ka8 {[%clk 0:00:06.7]} 56. Qb7# {[%clk 0:01:00]}
1-0

[Event "Early-Titled-Tuesday-Blitz-February-06-2024"]
[Site "Chess.com"]
[Date "2024.02.06"]
[Round "4"]
[White "GlavkonVVS"]
[Black "amintabatabaei"]
[Result "0-1"]
[WhiteElo "2608"]
[BlackElo "2949"]
[TimeControl "180+1"]
[EndTime "8:39:28 PST"]
[Termination "amintabatabaei won by resignation"]

1. c4 {[%clk 0:02:50.1]} 1... a6 {[%clk 0:03:00.9]} 2. e3 {[%clk 0:02:49.2]}
2... e6 {[%clk 0:03:00.5]} 3. Nf3 {[%clk 0:02:47]} 3... d5 {[%clk 0:03:00.9]} 4.
d4 {[%clk 0:02:46.1]} 4... Nf6 {[%clk 0:03:01.5]} 5. a4 {[%clk 0:02:44.9]} 5...
Ne4 {[%clk 0:02:51.2]} 6. Nc3 {[%clk 0:02:41.2]} 6... Bb4 {[%clk 0:02:50.6]} 7.
Qc2 {[%clk 0:02:39.7]} 7... Nd7 {[%clk 0:02:46.9]} 8. Bd3 {[%clk 0:02:36.8]}
8... f5 {[%clk 0:02:47.2]} 9. O-O {[%clk 0:02:36.4]} 9... c6 {[%clk 0:02:47.7]}
10. Nd2 {[%clk 0:02:20.5]} 10... Bd6 {[%clk 0:02:44.8]} 11. f4 {[%clk
0:02:06.5]} 11... g5 {[%clk 0:02:34.4]} 12. Nf3 {[%clk 0:02:01.8]} 12... gxf4
{[%clk 0:02:27.6]} 13. exf4 {[%clk 0:02:01.7]} 13... Rg8 {[%clk 0:02:28.2]} 14.
Ne5 {[%clk 0:01:32.2]} 14... Qh4 {[%clk 0:02:25.9]} 15. cxd5 {[%clk 0:01:26]}
15... cxd5 {[%clk 0:02:23.4]} 16. Be3 {[%clk 0:01:16.7]} 16... Ndf6 {[%clk
0:02:12.5]} 17. Bxe4 {[%clk 0:01:12.9]} 17... fxe4 {[%clk 0:02:03.7]} 18. Qf2
{[%clk 0:01:00.2]} 18... Qxf2+ {[%clk 0:01:57.6]} 19. Rxf2 {[%clk 0:00:59.8]}
19... Bd7 {[%clk 0:01:55.5]} 20. Rc2 {[%clk 0:00:54.8]} 20... Rc8 {[%clk
0:01:54.3]} 21. Rac1 {[%clk 0:00:54.2]} 21... Ke7 {[%clk 0:01:41.9]} 22. h3
{[%clk 0:00:50.9]} 22... h5 {[%clk 0:01:37.2]} 23. Kf2 {[%clk 0:00:45.8]} 23...
h4 {[%clk 0:01:23.5]} 24. Kf1 {[%clk 0:00:22.1]} 24... Nh5 {[%clk 0:01:23.2]}
25. Ne2 {[%clk 0:00:17.1]} 25... Rxc2 {[%clk 0:01:21.9]} 26. Rxc2 {[%clk
0:00:17.5]} 26... Bxa4 {[%clk 0:01:22.4]} 27. Rc3 {[%clk 0:00:16.4]} 27... Bb5
{[%clk 0:01:22.8]} 28. Kf2 {[%clk 0:00:15]} 28... Bxe2 {[%clk 0:01:22.7]} 29.
Kxe2 {[%clk 0:00:14.1]} 29... Rxg2+ {[%clk 0:01:23.4]} 30. Kd1 {[%clk
0:00:13.6]} 30... Rxb2 {[%clk 0:01:24.3]} 31. f5 {[%clk 0:00:11.7]} 31... exf5
{[%clk 0:01:19.9]} 32. Bg5+ {[%clk 0:00:10.2]} 32... Ke6 {[%clk 0:01:20.6]} 33.
Bxh4 {[%clk 0:00:08.8]} 33... Nf4 {[%clk 0:01:18.5]} 34. Rc8 {[%clk 0:00:05.9]}
34... Bxe5 {[%clk 0:01:16.7]} 35. Re8+ {[%clk 0:00:04.6]} 35... Kd7 {[%clk
0:01:09.8]} 36. Rxe5 {[%clk 0:00:05.2]} 36... a5 {[%clk 0:01:06.8]} 37. Rxf5
{[%clk 0:00:02.8]} 37... Ng2 {[%clk 0:01:07.3]} 38. Rxd5+ {[%clk 0:00:02]} 38...
Kc6 {[%clk 0:01:08]} 39. Rc5+ {[%clk 0:00:01.7]} 39... Kd7 {[%clk 0:01:08.5]}
40. Bd8 {[%clk 0:00:01.8]} 40... Kxd8 {[%clk 0:01:08.4]} 41. Rxa5 {[%clk
0:00:01.5]} 41... b5 {[%clk 0:01:06.6]} 42. Ra6 {[%clk 0:00:01.4]} 42... e3
{[%clk 0:01:03.4]} 43. Re6 {[%clk 0:00:02.1]} 43... b4 {[%clk 0:01:04]} 44. d5
{[%clk 0:00:02.1]} 44... b3 {[%clk 0:01:03.7]} 45. Re4 {[%clk 0:00:02.3]} 45...
Rf2 {[%clk 0:01:03.5]} 46. Kc1 {[%clk 0:00:02.1]} 46... e2 {[%clk 0:01:03]} 0-1

[Event "Early-Titled-Tuesday-Blitz-February-06-2024"]
[Site "Chess.com"]
[Date "2024.02.06"]
[Round "4"]
[White "SmirnovAlexandrA"]
[Black "Salem-AR"]
[Result "0-1"]
[WhiteElo "2608"]
[BlackElo "2939"]
[TimeControl "180+1"]
[EndTime "8:39:28 PST"]
[Termination "Salem-AR won by resignation"]

1. e4 {[%clk 0:02:58.2]} 1... d6 {[%clk 0:02:53.5]} 2. d4 {[%clk 0:02:57.1]}
2... Nf6 {[%clk 0:02:53.9]} 3. Nc3 {[%clk 0:02:56.8]} 3... g6 {[%clk 0:02:54.4]}
4. Bg5 {[%clk 0:02:56.8]} 4... Bg7 {[%clk 0:02:54]} 5. e5 {[%clk 0:02:57.2]}
5... Nfd7 {[%clk 0:02:51.1]} 6. f4 {[%clk 0:02:56.8]} 6... f6 {[%clk 0:02:45.7]}
7. exf6 {[%clk 0:02:56.3]} 7... exf6 {[%clk 0:02:45.4]} 8. Bh4 {[%clk
0:02:56.7]} 8... O-O {[%clk 0:02:45]} 9. Nf3 {[%clk 0:02:56.9]} 9... Re8+ {[%clk
0:02:34.3]} 10. Be2 {[%clk 0:02:56.6]} 10... Nc6 {[%clk 0:02:34.9]} 11. O-O
{[%clk 0:02:56.3]} 11... Nb6 {[%clk 0:02:34.7]} 12. d5 {[%clk 0:02:53.2]} 12...
Ne7 {[%clk 0:02:34.2]} 13. a4 {[%clk 0:02:50.6]} 13... a5 {[%clk 0:02:28]} 14.
Bf2 {[%clk 0:02:49.9]} 14... Nf5 {[%clk 0:02:20]} 15. Qd3 {[%clk 0:02:30.4]}
15... Nh6 {[%clk 0:02:16.1]} 16. Rfe1 {[%clk 0:02:21]} 16... Nd7 {[%clk
0:02:10.9]} 17. Nd4 {[%clk 0:02:14.7]} 17... Nc5 {[%clk 0:02:10.3]} 18. Qg3
{[%clk 0:02:10.2]} 18... Nf5 {[%clk 0:02:07.9]} 19. Nxf5 {[%clk 0:02:09.8]}
19... Bxf5 {[%clk 0:02:08.8]} 20. Bxc5 {[%clk 0:02:08.9]} 20... dxc5 {[%clk
0:02:08.5]} 21. Bd3 {[%clk 0:02:09.2]} 21... Bxd3 {[%clk 0:02:04]} 22. Qxd3
{[%clk 0:02:08.9]} 22... f5 {[%clk 0:02:04.4]} 23. Kf1 {[%clk 0:01:44.9]} 23...
Qh4 {[%clk 0:02:01.6]} 24. Qg3 {[%clk 0:01:42.3]} 24... Qf6 {[%clk 0:01:53.9]}
25. Rxe8+ {[%clk 0:01:40.4]} 25... Rxe8 {[%clk 0:01:53.2]} 26. Re1 {[%clk
0:01:41.3]} 26... Rxe1+ {[%clk 0:01:47.8]} 27. Qxe1 {[%clk 0:01:42.2]} 27... Kf8
{[%clk 0:01:40.8]} 28. Nb5 {[%clk 0:01:32.7]} 28... Qf7 {[%clk 0:00:51.1]} 29.
b3 {[%clk 0:01:20.6]} 29... Qd7 {[%clk 0:00:31.9]} 30. c4 {[%clk 0:01:13.2]}
30... c6 {[%clk 0:00:31.1]} 31. Nc3 {[%clk 0:01:12.7]} 31... Bd4 {[%clk
0:00:29.2]} 32. dxc6 {[%clk 0:01:09.1]} 32... bxc6 {[%clk 0:00:29.4]} 33. Ne2
{[%clk 0:01:03.8]} 33... Be3 {[%clk 0:00:29.6]} 34. g3 {[%clk 0:00:52.2]} 34...
Bd2 {[%clk 0:00:22.9]} 35. Qb1 {[%clk 0:00:45.9]} 35... Qe6 {[%clk 0:00:20.2]}
36. Qa1 {[%clk 0:00:43.4]} 36... Kg8 {[%clk 0:00:19.1]} 37. Qb2 {[%clk
0:00:36.9]} 37... Qe3 {[%clk 0:00:18.6]} 38. Qe5 {[%clk 0:00:18.4]} 38... Qf3+
{[%clk 0:00:17.8]} 39. Kg1 {[%clk 0:00:18.4]} 39... Be3+ {[%clk 0:00:18.7]} 0-1

[Event "Early-Titled-Tuesday-Blitz-February-06-2024"]
[Site "Chess.com"]
[Date "2024.02.06"]
[Round "4"]
[White "Vazabanga"]
[Black "Akylbek2021"]
[Result "1-0"]
[WhiteElo "2647"]
[BlackElo "2295"]
[TimeControl "180+1"]
[EndTime "8:39:28 PST"]
[Termination "Vazabanga won by resignation"]

1. d4 {[%clk 0:03:00.9]} 1... Nf6 {[%clk 0:03:00]} 2. c4 {[%clk 0:03:01]} 2...
e6 {[%clk 0:02:58.8]} 3. g3 {[%clk 0:03:01.1]} 3... c5 {[%clk 0:02:59]} 4. d5
{[%clk 0:03:01.5]} 4... exd5 {[%clk 0:02:59.4]} 5. cxd5 {[%clk 0:03:02.4]} 5...
d6 {[%clk 0:03:00.1]} 6. Nc3 {[%clk 0:03:02.7]} 6... g6 {[%clk 0:03:00.8]} 7.
Bg2 {[%clk 0:03:03.4]} 7... Bg7 {[%clk 0:03:01.5]} 8. Nf3 {[%clk 0:03:04.3]}
8... O-O {[%clk 0:03:02.2]} 9. O-O {[%clk 0:03:05.1]} 9... Re8 {[%clk
0:03:01.8]} 10. Nd2 {[%clk 0:03:05.3]} 10... a6 {[%clk 0:02:38.1]} 11. a4 {[%clk
0:03:05.2]} 11... Nbd7 {[%clk 0:02:38.7]} 12. Nc4 {[%clk 0:03:04.7]} 12... Ne5
{[%clk 0:02:37]} 13. Na3 {[%clk 0:03:04.5]} 13... h5 {[%clk 0:02:18.5]} 14. Bg5
{[%clk 0:02:58.7]} 14... Qb6 {[%clk 0:02:09.6]} 15. Qd2 {[%clk 0:02:54.3]} 15...
Bf5 {[%clk 0:01:58.5]} 16. e4 {[%clk 0:02:40.4]} 16... Bh3 {[%clk 0:01:35.3]}
17. f4 {[%clk 0:02:28.1]} 17... Bxg2 {[%clk 0:01:35.6]} 18. Kxg2 {[%clk
0:02:17.9]} 18... Neg4 {[%clk 0:00:59.3]} 19. h3 {[%clk 0:02:16.1]} 19... Nh6
{[%clk 0:00:59.3]} 20. e5 {[%clk 0:01:59.9]} 20... Nd7 {[%clk 0:00:53.6]} 21.
Nc4 {[%clk 0:01:56.7]} 21... Qb4 {[%clk 0:00:46.2]} 22. Nxd6 {[%clk 0:01:56.2]}
22... Nf5 {[%clk 0:00:24.2]} 23. Nxe8 {[%clk 0:01:40.6]} 23... Rxe8 {[%clk
0:00:25.1]} 24. Rfe1 {[%clk 0:01:40.3]} 24... Nb6 {[%clk 0:00:22.8]} 25. d6
{[%clk 0:01:30.1]} 25... Nc4 {[%clk 0:00:22]} 26. Qf2 {[%clk 0:01:23.7]} 26...
Nce3+ {[%clk 0:00:03.3]} 27. Kh1 {[%clk 0:00:52.1]} 27... Rf8 {[%clk 0:00:01.7]}
28. Rxe3 {[%clk 0:00:51.4]} 28... Nxe3 {[%clk 0:00:01.8]} 29. Qxe3 {[%clk
0:00:52.3]} 29... Qxb2 {[%clk 0:00:02.1]} 30. Rd1 {[%clk 0:00:51.8]} 30... b5
{[%clk 0:00:01.9]} 31. axb5 {[%clk 0:00:50.1]} 31... axb5 {[%clk 0:00:02.8]} 32.
d7 {[%clk 0:00:50.5]} 32... b4 {[%clk 0:00:03.4]} 33. Ne4 {[%clk 0:00:32.1]}
33... c4 {[%clk 0:00:02]} 34. d8=Q {[%clk 0:00:25.1]} 34... Rxd8 {[%clk
0:00:02.7]} 35. Rxd8+ {[%clk 0:00:24.8]} 35... Kh7 {[%clk 0:00:03.6]} 36. Bf6
{[%clk 0:00:22.1]} 36... Qb1+ {[%clk 0:00:03.2]} 37. Kg2 {[%clk 0:00:21.8]}
37... Qc2+ {[%clk 0:00:02.7]} 38. Kf3 {[%clk 0:00:21.8]} 38... Qd1+ {[%clk
0:00:02.4]} 39. Rxd1 {[%clk 0:00:21]} 1-0

[Event "Early-Titled-Tuesday-Blitz-February-06-2024"]
[Site "Chess.com"]
[Date "2024.02.06"]
[Round "4"]
[White "EsmeraldasAnderson03"]
[Black "Lennis93"]
[Result "0-1"]
[WhiteElo "2410"]
[BlackElo "2690"]
[TimeControl "180+1"]
[EndTime "8:39:31 PST"]
[Termination "Lennis93 won on time"]

1. d4 {[%clk 0:03:00.9]} 1... e6 {[%clk 0:02:58.7]} 2. c4 {[%clk 0:03:01.1]}
2... a6 {[%clk 0:02:57.3]} 3. Nc3 {[%clk 0:03:01]} 3... Bb4 {[%clk 0:02:56.7]}
4. f3 {[%clk 0:03:01.2]} 4... Bxc3+ {[%clk 0:02:56.5]} 5. bxc3 {[%clk
0:03:01.2]} 5... Ne7 {[%clk 0:02:55.6]} 6. e3 {[%clk 0:02:59.7]} 6... d6 {[%clk
0:02:55.7]} 7. Bd3 {[%clk 0:02:59]} 7... O-O {[%clk 0:02:56]} 8. Ne2 {[%clk
0:02:59.5]} 8... e5 {[%clk 0:02:55.9]} 9. O-O {[%clk 0:02:53.5]} 9... c5 {[%clk
0:02:55.8]} 10. Bb2 {[%clk 0:02:48.6]} 10... Nbc6 {[%clk 0:02:55.5]} 11. f4
{[%clk 0:02:34.6]} 11... Bg4 {[%clk 0:02:49.2]} 12. h3 {[%clk 0:02:30.5]} 12...
Bxe2 {[%clk 0:02:48.8]} 13. Qxe2 {[%clk 0:02:31.4]} 13... f5 {[%clk 0:02:48.3]}
14. fxe5 {[%clk 0:02:20.1]} 14... dxe5 {[%clk 0:02:48.1]} 15. d5 {[%clk
0:02:20.5]} 15... Na5 {[%clk 0:02:45.9]} 16. Bc2 {[%clk 0:02:20.5]} 16... e4
{[%clk 0:02:45.1]} 17. Ba3 {[%clk 0:02:14.7]} 17... b6 {[%clk 0:02:44.5]} 18.
Rab1 {[%clk 0:01:50.5]} 18... Rf6 {[%clk 0:02:42.8]} 19. Kh1 {[%clk 0:01:43.6]}
19... Nc8 {[%clk 0:02:40.8]} 20. Bb3 {[%clk 0:01:37.2]} 20... Nd6 {[%clk
0:02:40.9]} 21. Rf2 {[%clk 0:01:36.6]} 21... Rh6 {[%clk 0:02:39.6]} 22. Rbf1
{[%clk 0:01:36.2]} 22... Qg5 {[%clk 0:02:38.9]} 23. Bc1 {[%clk 0:01:34.4]} 23...
Qg3 {[%clk 0:02:34.5]} 24. Bd2 {[%clk 0:01:31.2]} 24... Rf8 {[%clk 0:02:31.4]}
25. Be1 {[%clk 0:01:31.3]} 25... Qe5 {[%clk 0:02:31.4]} 26. Rf4 {[%clk
0:01:22.9]} 26... g5 {[%clk 0:02:31.2]} 27. R4f2 {[%clk 0:01:23.5]} 27... Rff6
{[%clk 0:02:29.7]} 28. Kg1 {[%clk 0:01:10.1]} 28... Nab7 {[%clk 0:02:27.3]} 29.
Ba4 {[%clk 0:01:07.8]} 29... Nd8 {[%clk 0:02:26.8]} 30. Bd7 {[%clk 0:01:06.9]}
30... Rf7 {[%clk 0:02:20.7]} 31. Ba4 {[%clk 0:01:01.5]} 31... g4 {[%clk
0:02:07.3]} 32. Qb2 {[%clk 0:00:44.5]} 32... Nxc4 {[%clk 0:01:58.4]} 33. Qe2
{[%clk 0:00:41.5]} 33... b5 {[%clk 0:01:55.5]} 34. Bb3 {[%clk 0:00:41.6]} 34...
gxh3 {[%clk 0:01:48.5]} 35. gxh3 {[%clk 0:00:41.3]} 35... Rxh3 {[%clk
0:01:45.8]} 36. Rg2+ {[%clk 0:00:39.3]} 36... Rg7 {[%clk 0:01:45.5]} 37. Rxg7+
{[%clk 0:00:18.2]} 37... Qxg7+ {[%clk 0:01:46.4]} 38. Qg2 {[%clk 0:00:18.5]}
38... Nxe3 {[%clk 0:01:32.4]} 39. Qxg7+ {[%clk 0:00:12.8]} 39... Kxg7 {[%clk
0:01:33.3]} 40. Rf2 {[%clk 0:00:12.3]} 40... c4 {[%clk 0:01:33.1]} 41. Bc2
{[%clk 0:00:11.4]} 41... Nxc2 {[%clk 0:01:23.6]} 42. Rxc2 {[%clk 0:00:12.3]}
42... Rd3 {[%clk 0:01:22.6]} 43. Rg2+ {[%clk 0:00:10.8]} 43... Kf7 {[%clk
0:01:20.9]} 44. Bf2 {[%clk 0:00:10.3]} 44... e3 {[%clk 0:01:20.5]} 45. Bh4
{[%clk 0:00:10.8]} 45... Rxd5 {[%clk 0:01:19.8]} 46. Kf1 {[%clk 0:00:06.2]}
46... f4 {[%clk 0:01:19.8]} 47. Rg4 {[%clk 0:00:05.7]} 47... Ne6 {[%clk
0:01:19.6]} 48. Ke2 {[%clk 0:00:05.8]} 48... Rd2+ {[%clk 0:01:19.4]} 49. Kf3
{[%clk 0:00:06.3]} 49... Rxa2 {[%clk 0:01:17.1]} 50. Ke4 {[%clk 0:00:03.9]}
50... b4 {[%clk 0:01:09.6]} 51. cxb4 {[%clk 0:00:03.2]} 51... c3 {[%clk
0:01:10]} 52. Kd3 {[%clk 0:00:03.7]} 52... c2 {[%clk 0:01:09.7]} 53. Rg1 {[%clk
0:00:04.3]} 53... Rb2 {[%clk 0:01:06.1]} 54. Rc1 {[%clk 0:00:02.2]} 54... Kg6
{[%clk 0:01:03.6]} 55. Kc3 {[%clk 0:00:01.9]} 55... Rb1 {[%clk 0:00:59.3]} 56.
Rxc2 {[%clk 0:00:01.6]} 56... Kf5 {[%clk 0:00:59.5]} 57. Kd3 {[%clk 0:00:01.5]}
57... Rxb4 {[%clk 0:00:59]} 0-1

[Event "Early-Titled-Tuesday-Blitz-February-06-2024"]
[Site "Chess.com"]
[Date "2024.02.06"]
[Round "4"]
[White "KnightmareJoker"]
[Black "viktorskliarov"]
[Result "0-1"]
[WhiteElo "2170"]
[BlackElo "2636"]
[TimeControl "180+1"]
[EndTime "8:39:32 PST"]
[Termination "viktorskliarov won by resignation"]

1. e4 {[%clk 0:03:00.9]} 1... c5 {[%clk 0:02:59]} 2. Nf3 {[%clk 0:03:01.4]} 2...
Nc6 {[%clk 0:02:59]} 3. d4 {[%clk 0:03:01.4]} 3... cxd4 {[%clk 0:02:59.9]} 4.
Nxd4 {[%clk 0:03:02.2]} 4... Nf6 {[%clk 0:03:00.8]} 5. Nc3 {[%clk 0:03:02.8]}
5... e5 {[%clk 0:03:00.5]} 6. Ndb5 {[%clk 0:03:02]} 6... d6 {[%clk 0:03:00.7]}
7. Bg5 {[%clk 0:03:02.3]} 7... a6 {[%clk 0:03:00.9]} 8. Na3 {[%clk 0:03:01.4]}
8... b5 {[%clk 0:03:01.6]} 9. Nd5 {[%clk 0:03:00.8]} 9... Be7 {[%clk 0:03:01.6]}
10. Bxf6 {[%clk 0:03:01.1]} 10... Bxf6 {[%clk 0:03:02.5]} 11. c3 {[%clk
0:03:01.4]} 11... O-O {[%clk 0:03:01.9]} 12. Be2 {[%clk 0:02:54.9]} 12... Bg5
{[%clk 0:02:59.3]} 13. O-O {[%clk 0:02:47]} 13... Ne7 {[%clk 0:02:56]} 14. c4
{[%clk 0:02:28.4]} 14... Nxd5 {[%clk 0:02:44.7]} 15. Qxd5 {[%clk 0:02:28.1]}
15... Be6 {[%clk 0:02:40.8]} 16. Qd1 {[%clk 0:02:18.8]} 16... b4 {[%clk
0:02:27.6]} 17. Nc2 {[%clk 0:02:11.6]} 17... a5 {[%clk 0:02:27.9]} 18. Qd3
{[%clk 0:02:03.6]} 18... Qb6 {[%clk 0:02:24.2]} 19. b3 {[%clk 0:02:01.9]} 19...
g6 {[%clk 0:02:13.6]} 20. Bf3 {[%clk 0:01:35.1]} 20... a4 {[%clk 0:02:03.6]} 21.
Rfd1 {[%clk 0:01:25.9]} 21... Rfd8 {[%clk 0:02:01.4]} 22. g3 {[%clk 0:01:15.2]}
22... h5 {[%clk 0:01:51.1]} 23. Ne1 {[%clk 0:00:47.6]} 23... Ra6 {[%clk
0:01:11.2]} 24. h4 {[%clk 0:00:44.5]} 24... Be7 {[%clk 0:01:10.5]} 25. Nc2
{[%clk 0:00:38.8]} 25... Rda8 {[%clk 0:01:04.9]} 26. Kf1 {[%clk 0:00:32.9]}
26... Qc5 {[%clk 0:00:55.9]} 27. Ke2 {[%clk 0:00:29.2]} 27... Kg7 {[%clk
0:00:52.1]} 28. Qe3 {[%clk 0:00:29.4]} 28... Qa5 {[%clk 0:00:30.7]} 29. Qd2
{[%clk 0:00:27.1]} 29... Rb8 {[%clk 0:00:23.7]} 30. Ne3 {[%clk 0:00:22.9]} 30...
axb3 {[%clk 0:00:21.4]} 31. axb3 {[%clk 0:00:23]} 31... Qxa1 {[%clk 0:00:22]}
32. Rxa1 {[%clk 0:00:23.9]} 32... Rxa1 {[%clk 0:00:22.2]} 33. Nc2 {[%clk
0:00:24.5]} 33... Rb1 {[%clk 0:00:17.2]} 34. Nxb4 {[%clk 0:00:22]} 34... Rxb3
{[%clk 0:00:17.2]} 35. Nc6 {[%clk 0:00:14.5]} 35... Bxc4+ {[%clk 0:00:17.2]} 36.
Kd1 {[%clk 0:00:12]} 36... Rb1+ {[%clk 0:00:17]} 37. Kc2 {[%clk 0:00:07.4]}
37... R8b2+ {[%clk 0:00:16.9]} 38. Kc3 {[%clk 0:00:08]} 38... Rxd2 {[%clk
0:00:17.5]} 39. Kxd2 {[%clk 0:00:08.4]} 39... Kf8 {[%clk 0:00:16.2]} 40. Kc2
{[%clk 0:00:07.2]} 0-1

[Event "Early-Titled-Tuesday-Blitz-February-06-2024"]
[Site "Chess.com"]
[Date "2024.02.06"]
[Round "4"]
[White "valeriocarnicelli"]
[Black "Abund"]
[Result "0-1"]
[WhiteElo "2535"]
[BlackElo "2754"]
[TimeControl "180+1"]
[EndTime "8:39:34 PST"]
[Termination "Abund won by checkmate"]

1. e4 {[%clk 0:03:00.9]} 1... c6 {[%clk 0:02:59.9]} 2. d4 {[%clk 0:03:00]} 2...
d5 {[%clk 0:03:00.6]} 3. Nc3 {[%clk 0:02:59.8]} 3... dxe4 {[%clk 0:03:00.1]} 4.
Nxe4 {[%clk 0:03:00.7]} 4... Bf5 {[%clk 0:03:00.8]} 5. Ng3 {[%clk 0:03:00.7]}
5... Bg6 {[%clk 0:03:01.2]} 6. Nf3 {[%clk 0:03:01.4]} 6... Nd7 {[%clk
0:02:53.2]} 7. h4 {[%clk 0:03:01.4]} 7... h6 {[%clk 0:02:53.1]} 8. h5 {[%clk
0:03:01.7]} 8... Bh7 {[%clk 0:02:53.5]} 9. Bd3 {[%clk 0:03:02.4]} 9... Bxd3
{[%clk 0:02:53.4]} 10. Qxd3 {[%clk 0:03:03.3]} 10... Ngf6 {[%clk 0:02:53.6]} 11.
Bd2 {[%clk 0:03:03]} 11... e6 {[%clk 0:02:50.6]} 12. O-O-O {[%clk 0:03:02.5]}
12... Qc7 {[%clk 0:02:50.6]} 13. Kb1 {[%clk 0:03:02]} 13... Bd6 {[%clk
0:02:47.8]} 14. Ne4 {[%clk 0:02:59.8]} 14... Nxe4 {[%clk 0:02:47.6]} 15. Qxe4
{[%clk 0:03:00.7]} 15... Nf6 {[%clk 0:02:48.2]} 16. Qd3 {[%clk 0:02:58.5]} 16...
O-O-O {[%clk 0:02:47.8]} 17. Rhe1 {[%clk 0:02:56]} 17... Nxh5 {[%clk 0:02:44.6]}
18. Qb3 {[%clk 0:02:46.4]} 18... Nf6 {[%clk 0:02:41.7]} 19. c4 {[%clk
0:02:45.7]} 19... c5 {[%clk 0:02:31.2]} 20. Bc3 {[%clk 0:02:40.1]} 20... Kb8
{[%clk 0:02:27.3]} 21. dxc5 {[%clk 0:02:24.9]} 21... Qxc5 {[%clk 0:02:27.3]} 22.
Bd4 {[%clk 0:02:21.2]} 22... Qc6 {[%clk 0:02:17.1]} 23. Ka1 {[%clk 0:02:11.1]}
23... Ka8 {[%clk 0:02:12.9]} 24. Qc3 {[%clk 0:02:07.5]} 24... Ne4 {[%clk
0:01:34.1]} 25. Qe3 {[%clk 0:02:02.1]} 25... f5 {[%clk 0:01:15.2]} 26. Bxa7
{[%clk 0:01:49.1]} 26... Bb4 {[%clk 0:01:15.3]} 27. Rh1 {[%clk 0:01:31.4]} 27...
Qa4 {[%clk 0:01:09.7]} 28. Bd4 {[%clk 0:01:25.3]} 28... Rd6 {[%clk 0:00:57.6]}
29. Ne5 {[%clk 0:01:20.1]} 29... Rc8 {[%clk 0:00:39.6]} 30. f3 {[%clk
0:01:08.7]} 30... Nc5 {[%clk 0:00:34.5]} 31. Kb1 {[%clk 0:00:47.1]} 31... Ra6
{[%clk 0:00:23.9]} 32. a3 {[%clk 0:00:46.3]} 32... Nb3 {[%clk 0:00:17.4]} 33.
axb4 {[%clk 0:00:30.7]} 33... Qxb4 {[%clk 0:00:18]} 34. Qc3 {[%clk 0:00:19.9]}
34... Qa4 {[%clk 0:00:14.6]} 35. Rh4 {[%clk 0:00:11.1]} 35... Rd6 {[%clk
0:00:12.3]} 36. c5 {[%clk 0:00:10]} 36... Rxc5 {[%clk 0:00:09.3]} 37. Bxc5
{[%clk 0:00:06.3]} 37... Rxd1+ {[%clk 0:00:09.7]} 38. Kc2 {[%clk 0:00:06.9]}
38... Nd4# {[%clk 0:00:10.2]} 0-1